bitfinex-derivatives/quotes_BNBF0:USTF0_20251203
["timestamp","ask_amount","ask_price","bid_price","bid_amount"]
[1764749194210,1.10938831,897.09,896.66,1.134]
[1764749194411,1.10938831,897.08,896.66,1.134]
[1764749194612,1.10938831,897.07,896.66,1.134]
[1764749195013,1.10938831,897.06,896.66,1.134]
[1764749195308,1.10938831,897.07,896.66,1.134]
[1764749195714,1.10938831,896.97,896.66,1.134]
[1764749196211,1.10938831,896.98,896.66,1.134]
[1764749197116,1.10938831,897.0,896.66,1.134]
[1764749197317,1.10938831,896.93,896.66,1.134]
[1764749197918,1.10938831,896.92,896.66,1.134]
[1764749198214,1.10938831,896.95,896.66,1.134]
[1764749198418,1.10938831,896.94,896.66,1.134]
[1764749199219,1.10938831,896.97,896.66,1.134]
[1764749200115,1.10938831,896.98,896.66,1.134]
[1764749200319,1.10938831,897.0,896.66,1.134]
[1764749201122,1.10938831,897.02,896.66,1.134]
[1764749201421,1.10938831,896.96,896.66,1.134]
[1764749202221,1.10938831,896.99,896.66,1.134]
[1764749202418,1.10938831,897.0,896.66,1.134]
[1764749203221,1.10938831,897.02,896.66,1.134]
[1764749203621,1.10938831,897.03,896.66,1.134]
[1764749203822,1.10938831,896.97,896.66,1.134]
[1764749204019,1.10938831,896.96,896.66,1.134]
[1764749204219,1.10938831,896.99,896.66,1.134]
[1764749204621,1.10938831,896.97,896.66,1.134]
[1764749205121,1.10938831,896.99,896.66,1.134]
[1764749206126,1.10938831,897.01,896.66,1.134]
[1764749207224,1.10938831,897.03,896.66,1.134]
[1764749208124,1.10938831,897.05,896.66,1.134]
[1764749209123,1.10938831,897.06,896.66,1.134]
[1764749210228,1.10938831,897.07,896.66,1.134]
[1764749211229,1.10938831,897.08,896.66,1.134]
[1764749212031,1.10938831,897.05,896.66,1.134]
[1764749212229,1.10938831,897.06,896.66,1.134]
[1764749213133,1.10938831,897.02,896.66,1.134]
[1764749213328,0.19395128,897.39,896.66,1.134]
[1764749213329,1.10938831,896.98,896.66,1.134]
[1764749214130,1.10938831,896.99,896.66,1.134]
[1764749215333,1.10938831,896.98,895.57,0.01111419]
[1764749215530,1.10938831,896.98,895.36,1.318]
[1764749215531,1.10938831,896.91,895.36,1.318]
[1764749215730,1.10938831,896.85,895.36,1.318]
[1764749216331,1.10938831,896.86,895.36,1.318]
[1764749217234,1.10938831,896.88,895.36,1.318]
[1764749217936,1.10938831,896.88,895.37,1.085]
[1764749219038,1.10938831,896.86,895.37,1.085]
[1764749219238,1.10938831,896.85,895.37,1.085]
[1764749219738,1.10938831,896.8,895.37,1.085]
[1764749220334,1.10938831,896.79,895.37,1.085]
[1764749220536,8.57299167,896.96,895.37,1.085]
[1764749220537,1.10938831,896.74,895.37,1.085]
[1764749220737,1.10938831,896.69,895.37,1.085]
[1764749221641,1.10938831,896.63,895.37,1.085]
[1764749222436,1.10938831,896.66,895.37,1.085]
[1764749223340,1.10938831,896.68,895.37,1.085]
[1764749223940,1.10938831,896.67,895.37,1.085]
[1764749224236,1.10938831,896.62,895.37,1.085]
[1764749224435,2.77347078,897.47,895.37,1.085]
[1764749224436,9.80651043,896.57,895.37,1.085]
[1764749225336,8.69712212,896.57,895.37,1.085]
[1764749225640,1.10938831,896.56,895.37,1.085]
[1764749225840,1.10938831,896.49,895.37,1.085]
[1764749226240,1.10938831,896.52,895.37,1.085]
[1764749227036,9.5079583,896.52,895.37,1.085]
[1764749227442,8.39856999,896.52,895.37,1.085]
[1764749269778,9.5079583,896.52,895.37,1.085]
[1764749269979,9.5079583,896.52,895.14,0.83453174]
[1764749270179,1.10938831,896.51,895.14,0.83453174]
[1764749270379,9.5079583,896.52,895.15,0.83453174]
[1764749270577,9.5079583,896.52,895.15,2.03353174]
[1764749271280,1.10938831,896.51,895.16,0.83453174]
[1764749272078,1.10938831,896.5,895.17,0.83453174]
[1764749272778,1.10938831,896.5,895.18,1.242]
[1764749273182,1.10938831,896.49,895.18,2.07653174]
[1764749273478,8.39856999,896.52,895.24,0.83453174]
[1764749273682,8.39856999,896.52,895.26,0.83453174]
[1764749276283,8.39856999,896.52,895.29,0.83453174]
[1764749277180,8.39856999,896.52,895.28,0.83453174]
[1764749281390,8.39856999,896.52,895.27,0.83453174]
[1764749281591,8.39856999,896.52,895.43,0.83453174]
[1764749281790,8.39856999,896.52,895.46,0.83453174]
[1764749282291,8.39856999,896.52,895.45,0.83453174]
[1764749283192,8.39856999,896.52,895.44,0.83453174]
[1764749283486,8.39856999,896.52,895.43,0.83453174]
[1764749284388,8.39856999,896.52,895.18,1.242]
[1764749284389,8.39856999,896.52,895.42,0.83453174]
[1764749287789,8.39856999,896.52,895.44,0.83453174]
[1764749290295,8.39856999,896.52,895.45,0.83453174]
[1764749291296,8.39856999,896.52,895.44,0.83453174]
[1764749291497,8.39856999,896.52,895.45,0.83453174]
[1764749292393,8.39856999,896.52,895.46,0.83453174]
[1764749293397,8.39856999,896.52,895.47,0.83453174]
[1764749294198,1.10938831,896.78,895.47,0.83453174]
[1764749294398,1.10938831,896.77,895.48,0.83453174]
[1764749294899,1.10938831,896.77,895.32,1.11243619]
[1764749294900,1.10938831,896.78,895.49,0.83453174]
[1764749295297,1.10938831,896.77,895.5,0.83453174]
[1764749295897,1.10938831,896.74,895.48,0.83453174]
[1764749296198,1.10938831,896.64,895.38,0.83453174]
[1764749296400,1.10938831,896.63,895.39,0.83453174]
[1764749297300,1.10938831,896.61,895.41,0.83453174]
[1764749298000,1.10938831,896.58,895.39,0.83453174]
[1764749298404,1.10938831,896.56,895.41,0.83453174]
[1764749299402,1.10938831,896.56,895.18,1.242]
[1764749299403,1.10938831,896.55,895.42,0.83453174]
[1764749300402,1.10938831,896.54,895.43,0.83453174]
[1764749301405,1.10938831,896.53,895.44,0.83453174]
[1764749301909,1.10938831,896.54,895.45,0.83453174]
[1764749302310,1.10938831,896.53,895.47,0.83453174]
[1764749303306,1.10938831,896.52,895.48,0.83453174]
[1764749305011,1.10938831,896.51,895.47,0.83453174]
[1764749305213,1.10938831,896.5,895.46,0.83453174]
[1764749305807,1.10938831,896.5,895.47,0.83453174]
[1764749306210,1.10938831,896.45,895.42,0.83453174]
[1764749307314,1.10938831,896.44,895.42,0.83453174]
[1764749307510,1.10938831,896.44,895.43,0.83453174]
[1764749307815,1.10938831,896.43,895.42,0.83453174]
[1764749308016,1.10938831,896.3,895.29,0.83453174]
[1764749309312,1.10938831,896.29,895.29,0.83453174]
[1764749310217,1.10938831,896.28,895.28,0.83453174]
[1764749311318,1.10938831,896.23,895.23,0.83453174]
[1764749311512,1.10938831,896.23,895.29,0.908]
[1764749312312,1.10938831,896.19,895.29,0.908]
[1764749313217,1.10938831,896.18,895.29,0.908]
[1764749313418,1.10938831,896.15,895.29,0.908]
[1764749314413,1.10938831,896.16,895.29,0.908]
[1764749314717,1.10938831,896.15,895.29,0.908]
[1764749315319,1.10938831,896.16,895.29,0.908]
[1764749316415,1.10938831,896.17,895.29,0.908]
[1764749317318,8.44691366,896.57,895.29,0.908]
[1764749317319,1.10938831,896.18,895.29,0.908]
[1764749319124,1.10938831,896.17,895.29,0.908]
[1764749319419,1.10938831,896.18,895.29,0.908]
[1764749319924,1.10938831,896.17,895.29,0.908]
[1764749320421,1.10938831,896.18,895.29,0.908]
[1764749321424,1.10938831,896.19,895.29,0.908]
[1764749323322,1.10938831,896.2,895.29,0.908]
[1764749323822,2.77347078,897.01,895.29,0.908]
[1764749323823,1.10938831,896.18,895.29,0.908]
[1764749326228,1.10938831,896.19,895.29,0.908]
[1764749326628,1.10938831,896.19,894.99,0.83453174]
[1764749327428,1.10938831,896.2,894.98,0.83453174]
[1764749329129,1.10938831,896.2,894.99,1.135]
[1764749329328,1.10938831,896.21,894.99,1.135]
[1764749330229,1.10938831,896.2,894.99,1.135]
[1764749331328,1.10938831,896.21,894.99,1.135]
[1764749332431,1.10938831,896.22,894.99,1.135]
[1764749335432,1.10938831,896.23,894.99,1.135]
[1764749338234,1.10938831,896.24,894.99,1.135]
[1764749339940,1.10938831,896.2,894.99,1.135]
[1764749341242,1.10938831,896.19,894.99,1.135]
[1764749341444,1.10938831,896.15,894.99,1.135]
[1764749341738,8.54168296,896.54,894.99,1.135]
[1764749341739,1.10938831,896.13,894.99,1.135]
[1764749342444,1.10938831,896.24,894.99,1.135]
[1764749345241,1.10938831,896.23,894.99,1.135]
[1764749346947,8.54168296,896.54,894.99,1.135]
[1764749347944,1.10501457,896.37,895.08,0.83171297]
[1764749348342,1.10501457,896.36,895.09,0.83171297]
[1764749349046,1.10501457,896.38,895.1,0.83171297]
[1764749349348,1.10501457,896.37,895.11,0.83171297]
[1764749349546,1.10501457,896.35,895.1,0.83171297]
[1764749349847,1.10501457,896.35,895.09,0.83171297]
[1764749350343,1.10501457,896.35,894.99,1.135]
[1764749350344,1.10501457,896.34,895.1,0.83171297]
[1764749351147,1.10501457,896.34,895.11,0.83171297]
[1764749351448,1.10501457,896.33,895.11,0.83171297]
[1764749352248,1.10501457,896.33,895.12,0.83171297]
[1764749352449,1.10501457,896.32,895.13,0.83171297]
[1764749352748,1.10501457,896.31,895.12,0.83171297]
[1764749353249,1.10501457,896.29,895.13,0.83171297]
[1764749354249,1.10501457,896.28,895.14,0.83171297]
[1764749355349,1.10501457,896.27,895.16,0.83171297]
[1764749356250,1.10501457,896.26,895.16,0.83171297]
[1764749357253,1.10501457,896.18,895.09,0.83171297]
[1764749357446,1.10501457,896.18,895.1,0.83171297]
[1764749357651,1.10501457,896.16,895.08,0.83171297]
[1764749357847,1.10501457,896.14,895.06,0.83171297]
[1764749358249,1.10501457,896.13,895.06,0.83171297]
[1764749359451,1.10501457,896.12,895.07,0.83171297]
[1764749360155,1.10501457,896.13,895.08,0.83171297]
[1764749360351,1.10501457,896.13,894.99,1.135]
[1764749360352,1.10501457,896.21,895.16,0.83171297]
[1764749360555,1.10501457,896.2,895.17,0.83171297]
[1764749361352,1.10501457,896.19,895.18,0.83171297]
[1764749361652,1.10501457,896.2,895.19,0.83171297]
[1764749362253,1.10501457,896.19,895.2,0.83171297]
[1764749363261,1.10501457,896.19,895.21,0.83171297]
[1764749363456,1.10501457,896.18,895.22,0.83171297]
[1764749364359,1.10501457,896.16,895.23,0.83171297]
[1764749365359,8.54168296,896.54,895.25,0.83171297]
[1764749365360,1.10501457,896.15,895.25,0.83171297]
[1764749366358,1.10501457,896.14,895.26,0.83171297]
[1764749367360,1.10501457,896.12,895.27,0.83171297]
[1764749367960,1.10501457,896.16,895.31,0.83171297]
[1764749368262,1.10501457,896.23,895.38,0.83171297]
[1764749369158,1.10501457,896.24,895.38,0.83171297]
[1764749369362,1.10501457,896.23,895.38,0.83171297]
[1764749369758,1.10501457,896.23,895.39,1.129]
[1764749370262,1.10501457,896.24,895.4,0.939]
[1764749370462,1.10501457,896.23,895.4,0.939]
[1764749371163,1.10501457,896.24,895.4,0.939]
[1764749372464,1.10501457,896.16,895.4,0.939]
[1764749372664,1.10501457,896.17,895.4,0.939]
[1764749373769,1.10501457,896.15,895.4,0.939]
[1764749373969,1.10501457,896.13,895.4,0.939]
[1764749375672,1.10501457,896.06,895.4,0.939]
[1764749375870,1.10501457,896.05,895.4,0.939]
[1764749377075,1.10501457,896.06,895.4,0.939]
[1764749380275,1.65752186,896.22,895.4,0.939]
[1764749380576,8.54168296,896.54,895.4,0.939]
[1764749381675,1.10975521,896.06,895.4,0.939]
[1764749383872,1.10975521,896.07,895.4,0.939]
[1764749384076,1.10975521,896.11,895.4,0.939]
[1764749386476,1.10975521,896.11,895.39,1.129]
[1764749390380,1.10975521,896.09,895.4,1.301]
[1764749392382,1.10975521,896.08,895.4,1.301]
[1764749396886,1.10975521,896.05,895.4,1.301]
[1764749399286,1.10975521,896.04,895.4,1.301]
[1764749401288,1.10975521,896.06,895.4,1.301]
[1764749401488,1.10975521,896.1,895.4,1.301]
[1764749402188,1.10975521,896.09,895.4,1.301]
[1764749402490,1.10975521,896.21,895.41,0.974]
[1764749402885,1.10975521,896.19,895.41,0.974]
[1764749403384,1.10975521,896.2,895.41,0.974]
[1764749403788,1.10975521,896.19,895.41,0.974]
[1764749404189,1.10975521,896.2,895.41,0.974]
[1764749405184,1.10975521,896.19,895.41,0.974]
[1764749405390,1.10975521,896.2,895.42,1.265]
[1764749406191,1.10975521,896.19,895.42,1.265]
[1764749406393,1.10975521,896.2,895.42,1.265]
[1764749407191,1.10975521,896.19,895.42,1.265]
[1764749407392,1.10975521,896.2,895.42,1.265]
[1764749408092,1.10975521,896.23,895.42,1.265]
[1764749408391,1.10975521,896.43,895.58,0.83562876]
[1764749408588,1.10975521,896.43,895.59,0.83562876]
[1764749408888,1.10975521,896.44,895.59,0.83562876]
[1764749409492,1.10975521,896.45,895.57,0.83562876]
[1764749410394,1.10975521,896.47,895.56,0.83562876]
[1764749411194,1.10975521,896.47,895.55,0.83562876]
[1764749411394,1.10975521,896.48,895.54,0.83562876]
[1764749412294,1.10975521,896.49,895.53,0.83562876]
[1764749413390,1.10975521,896.5,895.52,0.83562876]
[1764749414297,1.10975521,896.51,895.52,0.83562876]
[1764749414497,1.10975521,896.51,895.51,0.83562876]
[1764749414797,9.79157948,896.53,895.53,0.83562876]
[1764749415197,8.68182427,896.53,895.53,0.83562876]
[1764749416200,8.68182427,896.53,895.52,0.83562876]
[1764749417394,8.68182427,896.53,895.51,0.83562876]
[1764749419501,8.68182427,896.53,895.5,0.83562876]
[1764749422305,8.68182427,896.53,895.49,0.83562876]
[1764749424203,8.68182427,896.53,895.5,0.83562876]
[1764749424406,1.10975521,896.75,895.63,0.83562876]
[1764749424705,1.10975521,896.74,895.62,0.83562876]
[1764749425201,1.10975521,896.75,895.62,0.83562876]
[1764749425409,1.10975521,896.76,895.61,0.83562876]
[1764749425801,1.10975521,896.76,895.41,0.974]
[1764749425802,1.10975521,896.76,895.62,0.83562876]
[1764749426303,1.10975521,896.77,895.62,0.83562876]
[1764749426501,1.10975521,896.77,895.61,0.83562876]
[1764749427205,1.10975521,896.78,895.61,0.83562876]
[1764749427406,1.10975521,896.78,895.41,0.974]
[1764749427407,1.10975521,896.78,895.6,0.83562876]
[1764749427600,1.10975521,896.78,895.62,1.506]
[1764749428305,1.10975521,896.79,895.62,1.506]
[1764749429603,1.10975521,896.7,895.62,1.506]
[1764749429906,1.10975521,896.67,895.62,1.506]
[1764749430299,1.10975521,896.68,895.62,1.506]
[1764749433207,1.10975521,896.69,895.62,1.506]
[1764749434307,1.10975521,896.7,895.62,1.506]
[1764749434507,1.10975521,896.71,895.62,1.506]
[1764749434709,1.10975521,896.79,895.62,1.506]
[1764749435306,1.10975521,896.8,895.62,1.506]
[1764749435606,1.10975521,896.82,895.62,1.506]
[1764749435806,1.10975521,896.83,895.62,1.506]
[1764749436007,1.10975521,896.82,895.62,1.506]
[1764749436404,1.10975521,896.85,895.62,1.506]
[1764749436605,1.10975521,896.86,895.62,1.506]
[1764749438211,1.66463282,897.02,895.62,1.506]
[1764749438212,1.10975521,896.94,895.69,0.83562876]
[1764749438410,1.10975521,896.95,895.68,0.83562876]
[1764749438808,1.10975521,896.96,895.69,0.83562876]
[1764749439211,1.10975521,896.96,895.62,1.506]
[1764749439212,1.10975521,897.02,895.76,0.83562876]
[1764749439408,1.10975521,897.04,895.75,0.83562876]
[1764749439609,1.10975521,897.04,895.75,0.83100568]
[1764749439807,1.10975521,897.03,895.75,0.83100568]
[1764749440510,1.10975521,897.04,895.74,0.83100568]
[1764749441408,1.10975521,897.05,895.73,0.83100568]
[1764749442212,1.10975521,897.05,895.74,0.83100568]
[1764749442408,1.10975521,897.06,895.73,0.83100568]
[1764749442713,1.10975521,897.05,895.73,0.83100568]
[1764749443411,1.10975521,897.06,895.72,0.83100568]
[1764749445409,1.10975521,897.07,895.71,0.83100568]
[1764749447211,1.10975521,897.07,895.77,0.83100568]
[1764749447516,1.10975521,897.13,895.76,0.83100568]
[1764749448516,1.10975521,897.14,895.76,0.83100568]
[1764749450517,1.10975521,897.15,895.76,0.83100568]
[1764749450715,1.10975521,897.16,895.77,0.83100568]
[1764749453214,1.10975521,897.15,895.78,0.83100568]
[1764749453520,1.10975521,897.16,895.77,0.83100568]
[1764749454219,1.10975521,897.15,895.78,0.83100568]
[1764749454414,1.10975521,897.16,895.77,0.83100568]
[1764749454718,1.10975521,897.17,895.78,0.83100568]
[1764749455218,1.10975521,897.16,895.79,0.83100568]
[1764749456219,1.10975521,897.15,895.79,0.83100568]
[1764749456419,1.10975521,897.16,895.79,0.83100568]
[1764749457118,1.10975521,897.16,895.66,1.531]
[1764749457119,1.10975521,897.13,895.76,0.83100568]
[1764749457318,1.10975521,897.12,895.77,0.83100568]
[1764749458221,8.5713047,897.4,895.78,0.83100568]
[1764749458222,1.10975521,897.11,895.78,0.83100568]
[1764749459222,1.10975521,897.1,895.8,0.83100568]
[1764749459416,1.10975521,897.1,895.79,0.83100568]
[1764749461518,1.10975521,897.09,895.8,0.83100568]
[1764749462428,1.10975521,897.08,895.81,0.83100568]
[1764749462623,1.10975521,897.12,895.85,0.83100568]
[1764749462825,1.10975521,897.13,895.86,0.83100568]
[1764749463026,1.10975521,897.14,895.87,0.83100568]
[1764749463528,1.10975521,897.12,895.86,0.83100568]
[1764749463927,1.10975521,897.09,895.83,0.83100568]
[1764749464429,1.10975521,897.07,895.82,0.83100568]
[1764749465226,1.10975521,897.06,895.81,0.83100568]
[1764749465431,1.10975521,896.95,895.72,0.83100568]
[1764749466228,1.10975521,896.95,895.73,0.83100568]
[1764749466432,1.10975521,896.94,895.74,0.83100568]
[1764749467529,1.10975521,896.93,895.75,0.83100568]
[1764749469134,1.10975521,896.92,895.75,0.83100568]
[1764749469333,1.10975521,896.92,895.76,0.83100568]
[1764749470234,1.10975521,896.95,895.79,0.83100568]
[1764749470830,1.10975521,896.94,895.78,0.83100568]
[1764749471033,1.10975521,896.93,895.77,0.83100568]
[1764749471533,1.10975521,896.92,895.77,0.83100568]
[1764749471733,1.10975521,896.94,895.78,0.83100568]
[1764749471934,1.10975521,896.94,895.79,0.83100568]
[1764749472230,1.10975521,897.02,895.87,0.83100568]
[1764749472633,1.10975521,897.04,895.89,0.83100568]
[1764749472834,1.10975521,897.08,895.93,0.83100568]
[1764749474332,1.10975521,897.08,895.94,0.83100568]
[1764749474831,1.10975521,897.06,895.92,0.83100568]
[1764749475338,1.10975521,897.05,895.92,0.83100568]
[1764749476938,1.10975521,897.06,895.93,2.31300568]
[1764749477233,1.10975521,897.05,895.93,1.482]
[1764749477736,1.10975521,897.24,896.11,0.83100568]
[1764749478734,1.10975521,897.25,896.12,0.83100568]
[1764749479237,2.77438804,898.06,896.11,0.83100568]
[1764749479238,1.10975521,897.26,896.11,0.83100568]
[1764749479537,1.10975521,897.25,896.12,0.83100568]
[1764749479735,1.10975521,897.25,896.11,0.83100568]
[1764749479933,1.10975521,897.25,896.12,0.83100568]
[1764749480339,1.10975521,897.26,896.11,0.83100568]
[1764749480539,1.10975521,897.26,895.95,1.11417168]
[1764749480540,1.10975521,897.25,896.12,0.83100568]
[1764749481235,1.10975521,897.26,896.11,0.83100568]
[1764749481438,1.10975521,897.25,896.11,0.83100568]
[1764749482235,1.10975521,897.26,896.11,0.83100568]
[1764749482539,1.10975521,897.25,896.12,0.83100568]
[1764749482834,1.10975521,897.25,896.11,0.83100568]
[1764749483036,1.10975521,897.25,896.12,0.83100568]
[1764749483238,1.10975521,897.26,896.11,0.83100568]
[1764749483440,1.10975521,897.25,896.12,0.83100568]
[1764749484238,1.10975521,897.26,896.13,1.136]
[1764749485641,1.10975521,897.25,896.13,1.136]
[1764749486340,1.10975521,897.26,896.13,1.136]
[1764749490141,1.10975521,897.28,896.13,1.136]
[1764749490345,1.10975521,897.27,896.13,1.136]
[1764749491342,1.10975521,897.26,896.13,1.136]
[1764749492242,1.10975521,897.27,896.13,1.136]
[1764749492442,1.10975521,897.26,896.13,1.96700568]
[1764749493046,1.10975521,897.18,896.13,1.136]
[1764749493242,1.10975521,897.13,896.13,1.136]
[1764749493444,8.61212352,897.52,896.13,1.136]
[1764749493445,1.10975521,897.0,896.13,1.136]
[1764749494349,1.10975521,896.98,896.13,1.136]
[1764749495449,1.10975521,896.97,896.13,1.136]
[1764749496752,1.10975521,896.97,895.93,0.83100568]
[1764749497250,1.10975521,896.96,895.93,0.83100568]
[1764749497553,1.10975521,896.96,895.94,0.83100568]
[1764749498355,1.10975521,896.95,895.94,0.83100568]
[1764749500750,1.10975521,896.98,895.97,0.83100568]
[1764749501053,1.10975521,897.06,896.05,0.83100568]
[1764749503155,1.10975521,897.05,896.05,0.83100568]
[1764749503450,1.10975521,897.06,896.06,0.83100568]
[1764749503754,1.10975521,897.16,896.16,0.83100568]
[1764749505252,1.10975521,897.15,896.15,0.83100568]
[1764749507358,1.10975521,897.16,896.15,0.83100568]
[1764749510856,1.10975521,897.15,896.14,0.83100568]
[1764749511055,1.10975521,897.07,896.06,0.83100568]
[1764749511856,1.10975521,897.06,896.05,0.83100568]
[1764749512361,1.10975521,897.03,896.03,0.83100568]
[1764749513255,1.10975521,896.99,895.98,0.83100568]
[1764749513457,1.10975521,896.95,895.95,1.124]
[1764749513662,1.10975521,896.94,895.95,1.124]
[1764749516659,0.19410977,896.7,895.95,1.124]
[1764749543393,0.19410977,896.7,895.8,5.87393681]
[1764749546195,0.19410977,896.7,895.8,6.70494249]
[1764749546396,0.19410977,896.7,895.85,0.83100568]
[1764749546596,0.19410977,896.7,895.87,0.83100568]
[1764749546793,0.19410977,896.7,895.88,0.83100568]
[1764749546997,0.19410977,896.7,895.88,2.31900568]
[1764749547292,0.19410977,896.7,895.89,0.83100568]
[1764749549196,0.19410977,896.7,895.9,0.83100568]
[1764749549896,0.19410977,896.7,895.89,0.83100568]
[1764749551095,0.19410977,896.7,895.9,0.83100568]
[1764749552195,0.19410977,896.7,895.91,0.83100568]
[1764749557702,0.19410977,896.7,895.89,0.83100568]
[1764749558002,0.19410977,896.7,895.88,1.488]
[1764749561804,1.10975521,896.68,895.88,1.488]
[1764749562900,1.10975521,896.68,895.59,0.83100568]
[1764749563106,1.10975521,896.69,895.59,0.83100568]
[1764749564104,1.10975521,896.68,895.59,0.83100568]
[1764749564400,1.10975521,896.66,895.57,0.83100568]
[1764749565001,1.10975521,896.65,895.56,0.83100568]
[1764749565602,1.10975521,896.65,895.57,1.184]
[1764749566204,1.10975521,896.65,895.57,2.01500568]
[1764749567304,1.10975521,896.64,895.57,2.01500568]
[1764749568209,1.10975521,896.64,895.59,0.83100568]
[1764749568505,0.19410977,896.7,895.68,0.83100568]
[1764749568906,0.19410977,896.7,895.72,0.83100568]
[1764749569104,0.19410977,896.7,895.77,0.83100568]
[1764749569705,0.19410977,896.7,895.78,0.83100568]
[1764749570006,0.19410977,896.7,895.76,0.83100568]
[1764749570310,0.19410977,896.7,895.77,0.83100568]
[1764749571213,0.19410977,896.7,895.78,0.83100568]
[1764749572213,0.19410977,896.7,895.79,0.83100568]
[1764749574314,0.19410977,896.7,895.8,0.83100568]
[1764749575214,0.19410977,896.7,895.57,1.184]
[1764749575215,0.19410977,896.7,895.81,0.83100568]
[1764749575912,1.30386498,896.7,895.73,0.83100568]
[1764749576111,1.10975521,896.69,895.73,0.83100568]
[1764749577315,1.10975521,896.62,895.66,0.83100568]
[1764749577615,1.10975521,896.62,895.74,1.126]
[1764749579415,1.10975521,896.59,895.74,1.126]
[1764749582622,1.10975521,896.6,895.74,1.126]
[1764749583422,1.10975521,896.61,895.74,1.126]
[1764749587425,1.10975521,896.63,895.74,1.126]
[1764749589024,1.10975521,896.64,895.74,1.126]
[1764749592536,1.10975521,896.64,895.66,0.83100568]
[1764749593231,1.10975521,896.64,895.57,1.184]
[1764749593431,1.10975521,896.64,895.66,0.83395687]
[1764749595133,1.10975521,896.64,895.65,0.83395687]
[1764749595534,1.10975521,896.64,895.66,1.332]
[1764749597834,1.30386498,896.7,895.71,0.83395687]
[1764749598739,0.19410977,896.7,895.72,0.83395687]
[1764749600340,0.19410977,896.7,895.73,0.83395687]
[1764749600537,0.19410977,896.7,895.82,0.83395687]
[1764749601338,0.19410977,896.7,895.81,0.83395687]
[1764749607344,0.19410977,896.7,895.82,0.83395687]
[1764749607648,0.19410977,896.7,895.81,0.83395687]
[1764749609146,0.19410977,896.7,895.82,0.83395687]
[1764749610745,0.19410977,896.7,895.66,2.44617168]
[1764749610746,0.19410977,896.7,895.81,0.83395687]
[1764749611145,0.19410977,896.7,895.82,0.83395687]
[1764749612445,0.19410977,896.7,895.83,1.369]
[1764749613140,0.19410977,896.7,895.83,2.20295687]
[1764749614241,0.19410977,896.7,895.84,0.83395687]
[1764749616145,0.19410977,896.7,895.85,0.83395687]
[1764749616945,0.19410977,896.7,895.86,0.83395687]
[1764749617142,0.19410977,896.7,895.87,0.83395687]
[1764749618748,0.19410977,896.7,895.88,1.205]
[1764749622752,1.10975521,896.61,895.88,1.205]
[1764749622949,1.10975521,896.57,895.88,1.205]
[1764749624155,1.10975521,896.58,895.88,1.205]
[1764749624356,1.10975521,896.59,895.88,1.205]
[1764749626451,1.10975521,896.6,895.88,1.205]
[1764749626857,1.10975521,896.63,895.88,1.205]
[1764749632562,1.10975521,896.62,895.88,1.205]
[1764749635363,1.10975521,896.61,895.88,1.205]
[1764749636164,1.10975521,896.62,895.88,1.205]
[1764749636364,1.10975521,896.61,895.88,1.205]
[1764749637165,1.10975521,896.62,895.88,1.205]
[1764749637367,1.10975521,896.61,895.88,1.205]
[1764749637768,1.10975521,896.61,895.83,1.369]
[1764749640071,1.10975521,896.61,895.84,1.273]
[1764749644373,1.10975521,896.6,895.84,1.273]
[1764749649270,1.10975521,896.58,895.84,1.273]
[1764749653073,1.10975521,896.52,895.84,1.273]
[1764749657783,1.10975521,896.52,895.83,1.369]
[1764749658276,0.19410977,896.7,895.83,1.369]
[1764749658277,1.10975521,896.53,895.83,1.369]
[1764749660977,1.10975521,896.54,895.83,1.369]
[1764749661277,1.10975521,896.54,895.84,1.048]
[1764749665880,1.10975521,896.53,895.84,1.048]
[1764749668678,1.10975521,896.51,895.84,1.048]
[1764749674192,1.10975521,896.51,895.85,1.312]
[1764749674692,1.10975521,896.5,895.85,1.312]
[1764749678296,1.10975521,896.49,895.85,1.312]
[1764749680195,1.10975521,896.48,895.85,1.312]
[1764749682298,1.10975521,896.47,895.85,1.312]
[1764749683201,1.10975521,896.48,895.85,1.312]
[1764749684002,1.10975521,896.46,895.85,1.312]
[1764749685303,1.10975521,896.47,895.85,1.312]
[1764749685499,1.10975521,896.46,895.85,1.312]
[1764749686805,1.10975521,896.44,895.85,1.312]
[1764749688803,1.10975521,896.42,895.85,1.312]
[1764749695209,1.10975521,896.43,895.85,1.312]
[1764749696512,1.10975521,896.33,895.85,1.312]
[1764749696808,1.10975521,896.31,895.85,1.312]
[1764749697107,1.10975521,896.29,895.85,1.312]
[1764749697311,1.10975521,896.3,895.85,1.312]